bitfinex/quotes_ETHUSD_20250518
["timestamp","ask_amount","ask_price","bid_price","bid_amount"]
[1747586816171,3.8856574,2573.6,2573.1,0.8099]
[1747586816372,0.5783,2574.0,2573.1,1.18049421]
[1747586816586,3.88536297,2573.8,2573.2,5.45885697]
[1747586816798,3.88536297,2573.8,2573.3,1.85256973]
[1747586817111,3.88586444,2573.5,2573.3,1.85256973]
[1747586817275,3.88564208,2573.6,2573.4,8.092]
[1747586817276,3.88567065,2573.6,2573.4,8.092]
[1747586818020,3.8853933,2573.8,2573.4,8.092]
[1747586818175,3.88551748,2573.7,2573.4,8.092]
[1747586818590,3.88563149,2573.6,2573.4,8.092]
[1747586818805,0.5783,2573.7,2573.2,5.42]
[1747586819006,0.5783,2573.7,2573.2,13.512]
[1747586819007,3.88605447,2573.4,2573.2,13.512]
[1747586819207,3.88582175,2573.5,2573.3,5.42]
[1747586819601,3.88590969,2573.4,2573.3,5.42]
[1747586820418,3.88565851,2573.6,2573.3,5.42]
[1747586820603,3.88573232,2573.6,2573.3,6.2337]
[1747586821117,3.88545673,2573.7,2573.3,6.2337]
[1747586821276,3.88545673,2573.7,2573.3,8.05480319]
[1747586821715,0.5783,2574.1,2573.3,8.05480319]
[1747586821893,3.88590969,2573.4,2573.3,0.8137]
[1747586822095,3.88522219,2573.9,2573.3,14.9147]
[1747586822517,3.88590969,2573.4,2573.3,6.8237]
[1747586822816,3.8856671,2573.6,2573.3,14.9147]
[1747586823110,0.5783,2574.1,2573.3,14.9147]
[1747586823303,0.5783,2574.1,2573.4,8.69879037]
[1747586823504,3.88562644,2573.6,2573.4,8.69879037]
[1747586824017,3.88575869,2573.5,2573.4,8.69879037]
[1747586824224,3.88567942,2573.6,2573.4,16.78979037]
[1747586824377,0.5783,2574.4,2573.4,20.67561275]
[1747586824584,0.5783,2574.4,2573.5,9.69071401]
[1747586824883,3.88509565,2574.0,2573.5,9.65186128]
[1747586825083,3.88455114,2574.3,2573.5,9.65186128]
[1747586825518,3.88525389,2573.9,2573.5,9.65186128]
[1747586825717,3.88521073,2573.9,2573.5,9.65186128]
[1747586825909,3.88521073,2573.9,2573.6,2.04316517]
[1747586826110,3.88525458,2573.9,2573.6,2.04316517]
[1747586826282,3.88508124,2574.0,2573.6,2.41410906]
[1747586826485,0.5783,2574.4,2573.6,2.41410906]
[1747586826688,3.88527393,2573.9,2573.6,2.41410906]
[1747586826981,3.88527393,2573.9,2573.7,0.91898091]
[1747586827187,3.88527393,2573.9,2573.6,6.38094389]
[1747586827411,3.88533366,2573.8,2573.6,6.38094389]
[1747586828025,3.88522997,2573.9,2573.6,6.38094389]
[1747586828344,3.88503507,2574.0,2573.7,0.37094389]
[1747586828845,0.5783,2574.4,2573.7,0.37094389]
[1747586829023,3.8849399,2574.1,2573.7,1.08560828]
[1747586829349,3.8849399,2574.1,2573.7,7.09560828]
[1747586829561,3.8849399,2574.1,2573.7,1.08560828]
[1747586830039,3.8849399,2574.1,2573.7,7.09560828]
[1747586830242,4.46275513,2574.4,2573.7,10.9809953]
[1747586830408,0.5783,2574.9,2573.9,0.7976]
[1747586830744,3.88462601,2574.3,2574.0,8.09]
[1747586830944,3.88462601,2574.3,2574.1,8.09]
[1747586831141,3.88455114,2574.3,2574.2,8.09]
[1747586831474,3.88445637,2574.4,2574.2,8.09]
[1747586831653,3.88455114,2574.3,2574.2,9.7071]
[1747586832105,3.88472754,2574.2,2574.0,8.08]
[1747586832310,3.88424936,2574.5,2573.9,0.7976]
[1747586832508,0.5783,2574.9,2574.0,8.089]
[1747586832708,3.88448963,2574.4,2574.0,8.089]
[1747586832903,3.88412928,2574.6,2574.0,8.089]
[1747586833104,3.8844133,2574.4,2574.1,2.08517002]
[1747586833535,3.88443008,2574.4,2574.1,2.08517002]
[1747586833921,3.88443008,2574.4,2574.1,2.45599954]
[1747586834124,3.88470204,2574.2,2574.1,2.45599954]
[1747586834322,3.8841874,2574.6,2574.2,8.089]
[1747586834521,3.8841874,2574.6,2574.3,0.7976]
[1747586834741,3.88427953,2574.5,2574.3,0.7976]
[1747586835124,3.88397037,2574.7,2574.3,0.7976]
[1747586835339,3.88420509,2574.6,2574.3,0.7976]
[1747586835538,3.88424936,2574.5,2574.4,0.88866]
[1747586835740,3.88424936,2574.5,2574.4,8.97766]
[1747586835963,3.88424936,2574.5,2574.4,8.089]
[1747586836371,4.46169388,2575.1,2574.4,8.089]
[1747586836669,3.88391113,2574.8,2574.4,8.089]
[1747586836879,3.88396297,2574.7,2574.4,8.089]
[1747586838242,3.88418617,2574.6,2574.3,1.08191547]
[1747586838443,3.88393406,2574.8,2574.4,16.163]
[1747586838770,3.38393406,2574.8,2574.5,1.72449155]
[1747586839071,3.8836736,2574.9,2574.2,3.88463183]
[1747586839072,3.88428407,2574.5,2574.2,0.7592]
[1747586839232,3.88402503,2574.7,2574.2,4.6438894]
[1747586839431,3.88365843,2574.9,2574.3,11.95854084]
[1747586839636,0.5783,2575.2,2574.6,3.88408879]
[1747586839834,76.09432383,2576.0,2574.7,0.38840888]
[1747586839835,3.88342106,2575.1,2574.7,0.38840888]
[1747586840039,72.39969591,2576.0,2575.0,0.7592]
[1747586840040,68.51756,2576.0,2575.0,0.7592]
[1747586840251,69.09586,2576.0,2575.1,16.162]
[1747586840577,3.88274222,2575.5,2575.2,16.162]
[1747586841000,72.97787021,2576.0,2575.2,16.162]
[1747586841001,69.09586,2576.0,2575.2,16.162]
[1747586841284,72.39962388,2576.0,2575.4,4.642026]
[1747586841587,72.39962388,2576.0,2575.9,3.88213828]
[1747586841588,68.51756,2576.0,2575.9,3.88213828]
[1747586841773,66.844768,2576.0,2575.9,28.80233828]
[1747586841935,66.844768,2576.0,2575.9,29.35233828]
[1747586841936,50.34992235,2576.0,2575.9,29.35233828]
[1747586842133,14.55417836,2576.0,2575.9,39.99793784]
[1747586842332,1.94363071,2576.5,2576.4,3.88138487]
[1747586842596,1.94363071,2576.5,2576.4,29.08890526]
[1747586842736,1.94363071,2576.5,2576.4,12.92790526]
[1747586842944,1.94363071,2576.5,2576.4,12.95443181]
[1747586843167,1.94363071,2576.5,2576.4,25.60377482]
[1747586843569,1.94363071,2576.5,2576.4,29.48515969]
[1747586843771,1.94363071,2576.5,2576.4,9.44277482]
[1747586843949,1.94363071,2576.5,2576.4,25.59677482]
[1747586844281,1.94363071,2576.5,2576.4,9.44277482]
[1747586844457,1.94363071,2576.5,2576.4,1.44277482]
[1747586844654,1.94363071,2576.5,2576.4,0.39625443]
[1747586845769,1.94363071,2576.5,2576.4,0.02652655]
[1747586845977,5.82486494,2576.5,2576.4,8.09552655]
[1747586846274,3.88123423,2576.5,2576.4,0.02652655]
[1747586846571,3.88109099,2576.6,2576.4,8.09552655]
[1747586846572,3.88112499,2576.6,2576.4,8.09552655]
[1747586846744,3.88058497,2577.0,2576.5,0.762]
[1747586846935,3.88072751,2576.9,2576.5,0.762]
[1747586847135,3.88087585,2576.8,2576.6,16.135]
[1747586847531,3.88066577,2576.9,2576.6,16.135]
[1747586847865,3.88032489,2577.2,2576.6,16.135]
[1747586848031,3.88067018,2576.9,2576.6,16.135]
[1747586848543,3.8806999,2576.9,2576.7,16.135]
[1747586849072,0.774,2577.4,2576.8,8.068]
[1747586849261,3.88007267,2577.3,2576.8,8.068]
[1747586849446,0.77598605,2577.3,2576.5,17.528]
[1747586849651,3.88063176,2576.9,2576.8,8.066]
[1747586850675,3.88063176,2576.9,2576.5,17.528]
[1747586850676,11.87946219,2577.7,2576.5,17.528]
[1747586850832,3.88090141,2576.8,2576.5,17.528]
[1747586851040,3.88108359,2576.6,2576.5,24.832]
[1747586851531,3.88108359,2576.6,2576.5,16.766]
[1747586851735,3.88123423,2576.5,2576.4,0.02652655]
[1747586852650,3.92806776,2576.5,2576.4,0.02652655]
[1747586853066,4.69563423,2576.5,2576.4,0.02652655]
[1747586854073,3.87979428,2577.5,2576.4,0.02652655]
[1747586854074,0.28711669,2577.9,2576.5,8.8059]
[1747586854278,0.8057,2578.1,2576.5,8.8059]
[1747586854279,0.8057,2578.1,2577.3,0.8059]
[1747586854580,3.69462792,2578.0,2577.2,16.129]
[1747586854754,0.45003279,2577.9,2577.2,8.063]
[1747586854945,0.45003279,2577.9,2576.9,17.5679]
[1747586855140,3.87990768,2577.4,2577.0,8.065]
[1747586855461,4.37603983,2577.9,2577.0,8.065]
[1747586855462,3.87942739,2577.7,2577.0,8.065]
[1747586855666,3.87956062,2577.7,2577.0,8.063]
[1747586855863,3.8802957,2577.2,2577.0,8.063]
[1747586856172,3.8802957,2577.2,2576.9,16.762]
[1747586856376,3.88048117,2577.0,2576.9,16.762]
[1747586856578,0.8057,2577.4,2576.9,16.762]
[1747586856579,3.88006538,2577.3,2576.9,16.762]
[1747586856886,3.88036889,2577.1,2576.9,16.762]
[1747586857181,3.88078236,2576.8,2576.7,0.46458374]
[1747586858241,11.88078236,2576.8,2576.7,0.46458374]
[1747586858444,11.88105531,2576.7,2576.2,8.8679]
[1747586858762,3.88093297,2576.7,2576.2,8.8679]
[1747586858972,3.88093297,2576.7,2576.3,0.29546547]
[1747586859555,3.88111304,2576.6,2576.3,0.29546547]
[1747586859855,3.88094456,2576.7,2576.3,0.29546547]
[1747586860179,3.88115944,2576.6,2576.3,0.29546547]
[1747586860383,3.88115944,2576.6,2576.0,20.64098157]
[1747586860384,11.88123423,2576.5,2576.0,16.759]
[1747586860675,8.0,2576.5,2576.1,3.88183366]
[1747586861245,4.6866515,2576.7,2576.1,3.88183366]
[1747586861454,3.88110187,2576.6,2576.2,0.28816839]
[1747586862440,3.88124899,2576.5,2576.2,0.28816839]
[1747586862641,8.0,2576.5,2576.0,36.76791909]
[1747586862836,8.0,2576.5,2576.1,3.88183585]
[1747586863082,8.0,2576.5,2576.2,0.36787704]
[1747586863684,0.8057,2576.7,2576.2,0.36787704]
[1747586863842,3.88133142,2576.5,2576.2,0.36787704]
[1747586864172,4.80852882,2576.6,2576.0,16.759]
[1747586864173,0.88057,2576.6,2576.0,16.759]
[1747586864378,3.88183688,2576.1,2576.0,16.759]
[1747586864538,3.88163915,2576.3,2575.9,0.28965199]
[1747586864739,0.88057,2576.6,2575.8,1.27048374]
[1747586864740,3.88170368,2576.2,2575.8,17.39748374]
[1747586864940,3.88192943,2576.1,2575.8,0.46458374]
[1747586865559,3.88201052,2576.0,2575.8,0.46458374]
[1747586865764,3.88213828,2575.9,2575.8,0.46458374]
[1747586866765,12.78656636,2575.9,2575.8,0.46458374]
[1747586866978,12.73973283,2575.9,2575.8,0.46458374]
[1747586868709,12.73973283,2575.9,2575.5,0.61944498]
[1747586868710,3.88334433,2575.1,2575.0,0.52221927]
[1747586868883,3.88334433,2575.1,2575.0,6.53221927]
[1747586869083,11.93017786,2575.1,2575.0,0.52221927]
[1747586869407,14.64064605,2575.1,2575.0,0.46458374]
[1747586869571,15.40044605,2575.1,2575.0,0.46458374]
[1747586871597,3.88455114,2574.3,2574.2,6.01]
[1747586871899,3.88485295,2574.1,2574.0,6.01]
[1747586873008,0.7598,2574.5,2574.0,6.01]
[1747586873168,3.88485295,2574.1,2574.0,6.01]
[1747586873700,3.88481516,2574.2,2574.0,6.01]
[1747586873870,3.88485295,2574.1,2574.0,6.01]
[1747586874065,3.88530577,2573.8,2573.7,0.46458374]
[1747586874472,3.8856077,2573.6,2573.5,6.01]
[1747586874808,3.88558309,2573.7,2573.5,6.01]
[1747586875164,3.88443152,2574.4,2573.5,6.01]
[1747586875405,3.88542852,2573.8,2573.5,6.01]
[1747586876114,3.88557452,2573.7,2573.5,6.01]
[1747586876473,3.8856077,2573.6,2573.5,6.01]
[1747586877904,3.88546925,2573.7,2573.5,6.01]
[1747586878906,3.88553459,2573.7,2573.5,6.01]
[1747586879612,3.88545972,2573.7,2573.5,6.01]
[1747586879781,3.88535484,2573.8,2573.5,6.01]
[1747586880106,3.88517421,2573.9,2573.5,6.01]
[1747586880327,3.88537809,2573.8,2573.5,6.01]
[1747586880529,12.78262938,2574.2,2573.5,6.01]
[1747586880825,3.8856077,2573.6,2573.5,6.01]
[1747586881029,4.7185077,2573.6,2573.5,6.01]
[1747586881546,3.88575869,2573.5,2573.4,0.05444056]
[1747586883940,11.88575869,2573.5,2573.4,0.05444056]
[1747586884140,12.86075869,2573.5,2573.4,0.05444056]
[1747586884442,15.42548533,2573.5,2573.4,0.05444056]
[1747586884610,15.42548533,2573.5,2572.6,6.01]
[1747586884611,3.88696699,2572.7,2572.6,6.01]
[1747586884795,3.88696699,2572.7,2572.2,6.01]
[1747586885001,3.88701898,2572.7,2572.2,9.89767726]
[1747586885199,3.88658728,2573.0,2572.4,3.88730395]
[1747586885397,3.88678873,2572.9,2572.3,3.88747915]
[1747586885926,3.88683632,2572.8,2572.3,3.88747915]
[1747586886292,3.88683632,2572.8,2572.2,6.01]
[1747586886293,3.88720434,2572.6,2572.2,6.01]
[1747586886510,3.88703445,2572.7,2572.2,6.01]
[1747586886905,3.88685835,2572.8,2572.2,6.01]
[1747586887107,0.975,2573.3,2572.2,6.01]
[1747586887437,3.88591297,2573.4,2572.8,3.88670048]
[1747586887633,4.86071394,2573.6,2572.9,3.88666485]
[1747586887844,4.86071394,2573.6,2572.8,3.88677248]
[1747586887845,3.88583126,2573.5,2573.0,6.01]
[1747586888056,16.776,2574.0,2573.3,3.88596501]
[1747586888347,4.34901557,2574.3,2573.6,4.85139727]
[1747586888511,0.975,2574.4,2573.7,6.01]
[1747586888708,3.88486632,2574.1,2573.7,6.01]
[1747586888911,3.88501238,2574.0,2573.7,6.01]
[1747586889149,3.8852433,2573.9,2573.7,6.01]
[1747586889658,3.88526721,2573.9,2573.7,6.01]
[1747586890015,3.8850809,2574.0,2573.7,6.01]
[1747586890252,3.88523054,2573.9,2573.7,6.01]
[1747586890452,3.88505928,2574.0,2573.7,6.01]
[1747586890651,3.88492944,2574.1,2573.7,6.01]
[1747586890855,0.975,2574.4,2573.7,6.01]
[1747586891057,0.8988,2574.7,2574.0,0.8925]
[1747586891240,3.88473126,2574.2,2574.0,0.8925]
[1747586891440,3.88476153,2574.2,2573.8,8.07]
[1747586891756,0.8988,2574.7,2573.8,11.95528606]
[1747586891966,3.88472378,2574.2,2573.8,8.07]
[1747586892259,3.88424936,2574.5,2573.7,6.9025]
[1747586892416,3.88493398,2574.1,2573.7,6.9025]
[1747586893251,3.88471296,2574.2,2573.7,6.9025]
[1747586893427,3.88471296,2574.2,2573.7,10.78787722]
[1747586893635,3.88471296,2574.2,2573.8,6.01]
[1747586893834,3.88486922,2574.1,2573.8,6.01]
[1747586894035,8.0,2574.6,2573.8,6.01]
[1747586894231,3.88472967,2574.2,2573.8,6.01]
[1747586894436,3.88462963,2574.3,2573.8,6.01]
[1747586894640,3.88493141,2574.1,2573.8,6.01]
[1747586894840,3.88512026,2574.0,2573.8,6.01]
[1747586895038,4.78281615,2574.7,2573.8,6.01]
[1747586895039,3.88515482,2573.9,2573.8,6.01]
[1747586896065,3.88507913,2574.0,2573.8,6.01]
[1747586896246,3.88495189,2574.1,2573.8,6.01]
[1747586896761,3.88501692,2574.0,2573.8,6.01]
[1747586896962,3.88515482,2573.9,2573.8,6.01]
[1747586897171,3.88485819,2574.1,2573.8,6.01]
[1747586897331,3.88500654,2574.0,2573.8,6.01]
[1747586897529,3.88492977,2574.1,2573.8,6.01]
[1747586897729,3.88501313,2574.0,2573.8,6.01]
[1747586897970,3.88494496,2574.1,2573.8,6.01]
[1747586898136,3.88440024,2574.4,2573.8,6.01]
[1747586898343,3.88477373,2574.2,2573.8,6.01]
[1747586898666,3.88488226,2574.1,2573.9,0.37038868]
[1747586898845,3.88500388,2574.0,2573.9,0.37038868]
[1747586899571,3.88500388,2574.0,2573.9,6.38038868]
[1747586901272,3.88480052,2574.2,2573.9,6.38038868]
[1747586901589,3.88487606,2574.1,2573.9,6.38038868]
[1747586901745,3.88469773,2574.3,2573.9,6.38038868]
[1747586901940,28.0181101,2574.6,2573.9,6.38038868]
[1747586902163,3.88480669,2574.2,2573.9,6.38038868]
[1747586902365,3.88480669,2574.2,2574.0,0.37038868]
[1747586902565,3.88499554,2574.1,2574.0,6.38038868]
[1747586903376,0.9691,2574.6,2574.0,6.38038868]
[1747586903580,3.88455201,2574.3,2574.0,7.33508868]
[1747586903762,3.88443596,2574.4,2574.0,7.33508868]
[1747586904160,3.88443596,2574.4,2574.1,0.37038868]
[1747586904957,3.88400354,2574.7,2574.1,0.37038868]
[1747586905160,3.88427961,2574.5,2574.2,6.01]
[1747586905456,3.88400189,2574.7,2574.3,6.01]
[1747586905676,0.9691,2574.9,2574.3,6.01]
[1747586905879,7.01582446,2574.9,2574.3,6.38038868]
[1747586906152,3.88379679,2574.8,2574.4,6.01]
[1747586906367,0.906,2575.2,2574.5,0.9159]
[1747586906666,8.906,2575.4,2574.6,6.01]
[1747586906863,8.906,2575.4,2574.6,14.073]
[1747586906864,3.88347199,2575.1,2574.6,14.073]
[1747586907260,3.88313041,2575.3,2574.7,6.01]
[1747586907489,3.88329097,2575.2,2574.8,0.37038868]
[1747586908190,3.88344954,2575.1,2574.8,0.37038868]
[1747586908387,3.88357036,2575.0,2574.8,0.37038868]
[1747586908588,3.88282124,2575.5,2574.8,0.37038868]
[1747586908755,3.8832066,2575.2,2574.9,0.9159]
[1747586909105,3.88309714,2575.3,2574.9,0.9159]
[1747586909287,3.88323079,2575.2,2574.9,0.9159]
[1747586909489,3.88347361,2575.1,2574.9,0.9159]
[1747586909689,3.8831698,2575.3,2574.9,0.9159]
[1747586909889,3.88306919,2575.3,2574.9,0.9159]
[1747586910079,3.88290917,2575.4,2574.9,0.9159]
[1747586910080,3.88320936,2575.2,2574.9,0.9159]
[1747586910678,0.906,2575.7,2574.9,0.9159]
[1747586911064,3.88304947,2575.3,2574.9,0.9159]
[1747586911271,3.88319681,2575.2,2574.9,0.9159]
[1747586911473,3.88319681,2575.2,2575.0,6.01]
[1747586912271,3.8831197,2575.3,2575.0,6.01]
[1747586912596,3.88334433,2575.1,2575.0,6.01]
[1747586913505,3.88321705,2575.2,2575.0,6.01]
[1747586913867,3.8831454,2575.3,2575.0,6.01]
[1747586914195,3.88282373,2575.5,2575.1,6.01]
[1747586914401,3.88299324,2575.4,2575.2,6.9347]
[1747586914719,0.9621,2575.7,2575.2,6.9347]
[1747586914902,9.0241,2576.0,2575.2,6.9347]
[1747586915192,3.88251426,2575.7,2575.3,6.01]
[1747586915396,0.9621,2576.0,2575.3,6.01]
[1747586915595,3.88289197,2575.4,2575.3,6.01]
[1747586917203,0.9621,2575.5,2574.8,6.01]
[1747586917368,3.88348013,2575.1,2574.8,6.01]
[1747586917698,4.84485949,2575.5,2574.8,6.01]
[1747586917862,3.88339958,2575.1,2574.9,0.9247]
[1747586918274,3.88349514,2575.0,2574.9,0.9247]
[1747586918475,3.8834135,2575.1,2574.9,0.9247]
[1747586918699,3.88243972,2575.7,2574.9,0.9247]
[1747586918895,3.88313926,2575.3,2574.9,0.9247]
[1747586919300,3.88236416,2575.8,2575.0,9.89349514]
[1747586919508,0.9409,2576.3,2575.4,3.88284561]
[1747586919713,0.9409,2576.3,2575.6,0.9228]
[1747586920005,3.88207492,2576.0,2575.6,8.9838]
[1747586920159,0.9409,2576.3,2575.7,6.01]
[1747586920366,3.88225271,2575.9,2575.7,6.01]
[1747586920594,4.82245348,2576.3,2575.7,6.01]
[1747586920595,3.88228899,2575.8,2575.7,6.01]
[1747586920801,3.88219048,2575.9,2575.7,6.01]
[1747586921003,4.82245348,2576.3,2575.7,6.01]
[1747586921220,5.30469883,2576.3,2575.7,6.01]
[1747586921369,3.88221967,2575.9,2575.7,6.01]
[1747586921704,3.88224554,2575.9,2575.7,6.01]
[1747586921998,3.88181507,2576.2,2575.7,6.01]
[1747586922199,25.7149,2576.6,2575.7,9.89243303]
[1747586922367,3.88180165,2576.2,2575.7,6.01]
[1747586922565,3.88143613,2576.4,2575.7,9.89241607]
[1747586922900,3.88170988,2576.2,2575.8,6.9328]
[1747586923100,3.88198757,2576.0,2575.9,6.01]
[1747586924203,3.8817612,2576.2,2575.9,6.01]
[1747586924398,3.88148192,2576.4,2575.9,6.01]
[1747586924699,3.88154987,2576.3,2575.9,6.01]
[1747586925176,3.8813977,2576.4,2575.9,9.89212405]
[1747586925382,3.88093297,2576.7,2575.9,6.01]
[1747586925590,3.88165975,2576.3,2575.9,6.01]
[1747586925899,3.88193562,2576.1,2575.9,6.01]
[1747586926307,3.88175065,2576.2,2575.9,6.01]
[1747586926512,3.88175065,2576.2,2576.0,6.01]
[1747586926712,3.88175065,2576.2,2576.1,6.01]
[1747586927615,3.88168558,2576.3,2576.1,6.01]
[1747586927819,3.8816862,2576.2,2576.1,6.01]
[1747586928618,3.88078236,2576.8,2576.1,6.01]
[1747586928812,3.88146433,2576.4,2576.2,6.01]
[1747586929022,8.0,2577.2,2576.3,6.9259]
[1747586929186,3.88130586,2576.5,2576.3,6.9259]
[1747586929915,8.0,2577.2,2576.3,6.9259]
[1747586930098,3.88123866,2576.5,2576.3,6.9259]
[1747586930822,3.88138487,2576.4,2576.3,14.068]
[1747586931320,3.88138487,2576.4,2576.3,6.01]
[1747586932294,3.88193766,2576.1,2575.9,8.058]
[1747586932580,3.88193766,2576.1,2576.0,6.01]
[1747586932782,3.88163659,2576.3,2576.0,6.01]
[1747586933514,3.88171503,2576.2,2576.0,6.01]
[1747586933699,3.88139689,2576.4,2576.0,6.01]
[1747586933700,3.88160938,2576.3,2576.0,6.01]
[1747586933901,3.8809841,2576.7,2576.0,6.01]
[1747586934130,0.84699288,2576.7,2576.1,6.01]
[1747586934410,3.88162575,2576.3,2576.1,6.01]
[1747586935241,3.8816862,2576.2,2576.1,6.01]
[1747586938545,3.88198757,2576.0,2575.9,6.01]
[1747586940589,3.88198757,2576.0,2575.6,8.051]
[1747586940590,3.88243972,2575.7,2575.6,6.01]
[1747586943287,3.88274121,2575.5,2575.4,6.01]
[1747586944774,3.88233318,2575.8,2575.4,6.01]
[1747586944775,3.88213828,2575.9,2575.4,6.01]
[1747586944959,3.88208844,2576.0,2575.4,9.89275846]
[1747586945168,12.81538487,2576.4,2575.6,0.9849]
[1747586945169,3.88213999,2575.9,2575.6,0.9849]
[1747586945371,3.88228983,2575.8,2575.6,0.9849]
[1747586945542,3.88259046,2575.6,2575.5,8.42186041]
[1747586945737,3.88259046,2575.6,2575.5,0.37086041]
[1747586947343,3.88274121,2575.5,2575.4,6.01]
[1747586947544,3.88319353,2575.2,2575.1,6.01]
[1747586947781,3.88319353,2575.2,2575.0,6.01]
[1747586947782,3.88334433,2575.1,2575.0,6.01]
[1747586947978,3.88349514,2575.0,2574.9,6.01]
[1747586948874,3.88341601,2575.1,2574.9,6.01]
[1747586949052,3.88349514,2575.0,2574.9,6.01]
[1747586949252,0.9815,2575.5,2574.9,6.01]
[1747586949451,3.88314848,2575.3,2574.9,6.01]
[1747586949654,3.88289197,2575.4,2574.9,6.01]
[1747586949655,3.88321232,2575.2,2574.9,6.01]
[1747586949863,3.88338365,2575.1,2574.9,6.01]
[1747586950187,3.88349514,2575.0,2574.9,6.01]
[1747586950341,3.88349514,2575.0,2574.8,0.46458374]
[1747586950342,3.88364596,2574.9,2574.8,0.46458374]
[1747586950743,3.88364596,2574.9,2574.7,0.0534489]
[1747586950948,3.88379679,2574.8,2574.7,0.9826489]
[1747586951172,3.88372361,2574.9,2574.7,0.9826489]
[1747586951370,3.88379679,2574.8,2574.7,0.9826489]
[1747586951543,3.88379679,2574.8,2574.7,0.0534489]
[1747586951751,5.64204292,2574.8,2574.7,0.0534489]
[1747586952355,3.88352084,2575.0,2574.7,0.0534489]
[1747586952543,3.88364596,2574.9,2574.7,0.0534489]
[1747586952968,3.88379679,2574.8,2574.7,0.0534489]
[1747586954165,4.79959679,2574.8,2574.7,0.0534489]
[1747586954743,16.48544153,2574.8,2574.7,0.0534489]
[1747586954986,19.32705028,2574.8,2574.7,0.0534489]
[1747586956045,3.88500388,2574.0,2573.9,6.01]
[1747586956251,3.88500388,2574.0,2573.6,1.55164498]
[1747586956252,3.88515482,2573.9,2573.7,8.053]
[1747586956461,3.88515482,2573.9,2573.8,6.01]
[1747586956753,0.96263353,2574.3,2573.8,6.01]
[1747586956754,4.80038839,2574.3,2573.8,6.01]
[1747586956958,3.88515482,2573.9,2573.8,6.01]
[1747586957178,3.88530577,2573.8,2573.7,6.01]
[1747586957985,4.80110577,2573.8,2573.7,6.01]
[1747586958548,3.88530577,2573.8,2573.7,6.01]
[1747586961190,4.78550577,2573.8,2573.7,6.01]
[1747586961390,6.82595792,2573.8,2573.7,6.01]
[1747586961974,3.88615576,2573.3,2573.1,6.01]
[1747586962892,3.88593932,2573.4,2573.1,6.01]
[1747586963058,3.88611132,2573.3,2573.1,6.01]
[1747586963484,3.88621172,2573.2,2573.1,6.01]
[1747586965355,4.53698913,2573.2,2573.1,6.01]
[1747586965562,0.65077741,2573.2,2572.8,14.066]
[1747586965759,3.88661074,2573.0,2572.8,14.066]
[1747586965958,3.88666485,2572.9,2572.8,14.066]
[1747586966195,3.88681592,2572.8,2572.7,16.771]
[1747586966401,4.81459449,2573.3,2572.6,3.88703564]
[1747586966562,3.88628858,2573.2,2572.6,3.88703564]
[1747586967303,4.81459449,2573.3,2572.5,8.9986]
[1747586967304,3.88675976,2572.9,2572.5,8.9986]
[1747586967464,3.88709406,2572.7,2572.6,6.01]
[1747586968162,3.88709406,2572.7,2572.6,5.51]
[1747586969106,3.88754891,2572.4,2572.1,8.048]
[1747586969273,12.81536209,2572.8,2572.1,8.048]
[1747586969478,2.45482068,2572.7,2572.1,8.048]
[1747586969677,3.88753588,2572.4,2572.1,8.048]
[1747586969881,3.8872739,2572.5,2572.1,8.048]
[1747586970596,3.88738855,2572.5,2572.1,8.048]
[1747586970799,3.88743911,2572.4,2572.1,8.048]
[1747586970998,3.8878538,2572.2,2572.0,0.02653243]
[1747586971399,3.88787372,2572.1,2572.0,0.02653243]
[1747586971604,3.88787372,2572.1,2571.9,17.7276]
[1747586971605,3.88787372,2572.1,2571.9,16.776]
[1747586971822,0.38874391,2572.4,2571.9,16.776]
[1747586972102,3.88787931,2572.1,2571.9,16.776]
[1747586972612,4.61434474,2572.6,2571.9,16.776]
[1747586972781,3.8879112,2572.1,2571.9,16.776]
[1747586972970,3.88802488,2572.0,2571.9,16.776]
[1747586973166,3.88802488,2572.0,2571.7,0.9516]
[1747586973909,3.88794793,2572.1,2571.7,0.9516]
[1747586974108,3.88805899,2572.0,2571.7,0.9516]
[1747586974922,3.88805899,2572.0,2571.7,9.0026]
[1747586975103,4.61434474,2572.6,2571.7,9.0026]
[1747586975306,0.8969,2572.1,2571.2,8.052]
[1747586975511,3.88802488,2572.0,2571.4,3.88886381]
[1747586975674,3.8879208,2572.1,2571.5,4.72187742]
[1747586975881,4.7842213,2572.5,2571.7,3.88839619]
[1747586976081,0.04683353,2572.4,2571.5,0.9832]
[1747586976420,3.88829968,2571.9,2571.5,0.9832]
[1747586976592,3.88836983,2571.8,2571.5,0.9832]
[1747586976772,0.04683353,2571.9,2571.5,0.9832]
[1747586976977,4.78494588,2572.0,2571.5,0.9832]
[1747586977314,3.88832724,2571.8,2571.5,0.9832]
[1747586977520,1.37539459,2572.0,2571.5,0.9832]
[1747586977820,3.88821929,2571.9,2571.5,0.9832]
[1747586978413,3.88834351,2571.8,2571.5,0.9832]
[1747586978607,4.36660882,2572.0,2571.5,4.87197537]
[1747586978811,3.88817709,2571.9,2571.5,0.9832]
[1747586979337,0.8969,2572.2,2571.5,0.9832]
[1747586979631,3.88817813,2571.9,2571.5,0.9832]
[1747586980711,3.88817813,2571.9,2571.4,8.052]
[1747586980712,3.88862964,2571.6,2571.4,8.052]
[1747586981420,3.8884987,2571.7,2571.4,8.052]
[1747586981636,3.88862964,2571.6,2571.4,8.052]
[1747586981882,3.88878086,2571.5,2571.2,6.459]
[1747586981990,3.88947,2571.1,2570.9,9.002]
[1747586982194,0.8978,2571.7,2570.9,9.002]
[1747586982195,4.78640736,2571.7,2570.9,9.002]
[1747586982418,3.88919312,2571.3,2570.9,9.002]
[1747586982932,4.36727279,2571.6,2570.9,9.002]
[1747586983141,3.88878086,2571.5,2570.9,12.89158407]
[1747586983344,4.36727279,2571.6,2570.9,12.89158407]
[1747586983501,3.88897344,2571.4,2570.9,12.89158407]
[1747586984111,3.88909988,2571.3,2570.9,9.002]
[1747586984310,3.88885295,2571.5,2570.9,9.002]
[1747586984523,0.47864074,2571.6,2570.9,12.89160857]